bitfinex/quotes_ETHUSD_20220109
["timestamp","ask_amount","ask_price","bid_price","bid_amount"]
[1641745278093,6.15284212,3103.9,3103.4,0.465]
[1641745278493,6.15284212,3103.9,3103.5,0.00227369]
[1641745278693,0.74719659,3103.7,3103.5,0.00227369]
[1641745280844,10.68487161,3103.6,3103.5,0.00227369]
[1641745281043,10.68487161,3103.6,3103.5,7.369e-05]
[1641745281246,12.94451707,3103.6,3103.5,7.369e-05]
[1641745281443,17.23487161,3103.6,3102.6,0.00518951]
[1641745281744,0.08056,3103.5,3102.6,0.00518951]
[1641745281943,16.93487161,3103.6,3102.6,0.00518951]
[1641745281944,10.68487161,3103.6,3102.6,0.00518951]
[1641745282243,12.32015282,3103.6,3102.7,2.14067654]
[1641745282442,12.32015282,3103.6,3102.9,1.10685242]
[1641745282647,12.32015282,3103.6,3103.0,0.465]
[1641745282843,1.63528121,3103.6,3103.0,0.46791581]
[1641745283043,1.63528121,3103.6,3103.1,0.00234739]
[1641745283044,1.21661864,3103.6,3103.1,0.00234739]
[1641745283892,5.13414559,3103.6,3103.1,0.00234739]
[1641745284490,2.74540388,3103.6,3103.1,0.00234739]
[1641745284692,2.74540388,3103.5,3103.1,0.00234739]
[1641745285491,1.96875802,3103.7,3103.1,0.00234739]
[1641745285492,2.74540388,3103.6,3103.1,0.00234739]
[1641745286492,2.74540388,3103.6,3103.2,0.80568]
[1641745286693,2.74540388,3103.6,3103.3,0.465]
[1641745286949,2.74540388,3103.6,3103.3,0.46621054]
[1641745287542,2.74540388,3103.6,3102.9,0.55594728]
[1641745287742,2.74540388,3103.6,3103.4,0.465]
[1641745287945,3.65113685,3103.5,3103.4,0.465]
[1641745288143,0.00113685,3103.5,3103.4,0.465]
[1641745288543,0.00113685,3103.5,3103.4,1.27061]
[1641745288942,2.69654073,3103.6,3103.4,1.27061]
[1641745289142,2.69654073,3103.6,3103.4,1.57061]
[1641745289542,2.69654073,3103.6,3103.5,1.52939232]
[1641745289743,0.74719659,3103.7,3103.5,1.99439232]
[1641745290547,0.74719659,3103.7,3103.5,2.79992232]
[1641745291000,0.74719659,3103.7,3103.6,0.80555]
[1641745291199,0.74719659,3103.7,3103.6,1.27055]
[1641745291412,0.74833343,3103.7,3103.6,1.27055]
[1641745295276,1.21661864,3104.2,3103.6,1.27055]
[1641745295477,1.21661864,3104.2,3103.9,0.80549]
[1641745295680,0.0022737,3104.1,3104.0,0.465]
[1641745296479,0.0022737,3104.1,3104.0,31.82890764]
[1641745296880,0.0022737,3104.1,3104.0,33.43959764]
[1641745297681,0.0022737,3104.1,3104.0,32.22936953]
[1641745298889,0.0022737,3104.1,3104.0,33.46625011]
[1641745304446,1.16889234,3104.2,3104.0,33.46625011]
[1641745305046,1.16889234,3104.2,3104.0,32.22936953]
[1641745306205,1.16889234,3104.2,3104.0,30.79449468]
[1641745306398,1.63528121,3104.4,3104.0,30.79449468]
[1641745306599,1.63528121,3104.3,3104.0,30.79554079]
[1641745306800,1.63641805,3104.3,3104.0,30.79554079]
[1641745307100,1.63641805,3104.3,3104.0,29.18485079]
[1641745307900,0.00113684,3104.3,3104.0,26.25593172]
[1641745308707,1.58641805,3104.3,3104.0,26.25593172]
[1641745308901,1.58641805,3104.3,3104.1,0.00113684]
[1641745309304,3.68704151,3104.5,3104.1,0.00113684]
[1641745309543,2.74489599,3104.3,3104.1,0.00113684]
[1641745310145,2.74489599,3104.4,3104.1,0.00113684]
[1641745310943,0.8055182,3104.6,3104.1,0.00113684]
[1641745311448,2.74603284,3104.5,3104.2,1.1336363]
[1641745311843,2.74489599,3104.5,3104.1,0.00113684]
[1641745312244,2.74660126,3104.6,3104.1,0.00113684]
[1641745312647,0.80556,3104.5,3104.1,0.00113684]
[1641745312846,2.74660126,3104.6,3104.1,1.33687494]
[1641745313047,2.44580451,3104.5,3104.1,0.00113684]
[1641745313896,8.36554968,3104.6,3104.1,0.00113684]
[1641745314100,0.8055326,3104.5,3104.1,0.00113684]
[1641745314399,2.74489599,3104.4,3104.1,0.00113684]
[1641745314795,6.45583078,3104.4,3104.1,0.00113684]
[1641745314996,7.26144078,3104.4,3104.1,0.00113684]
[1641745315199,7.22862825,3104.4,3104.1,0.00113684]
[1641745315397,5.88737787,3104.4,3104.1,0.00113684]
[1641745315797,2.74489599,3104.3,3104.1,0.00113684]
[1641745318347,5.93765116,3104.2,3104.1,0.00113684]
[1641745318947,4.38254715,3104.2,3104.1,0.00113684]
[1641745319649,1.63765116,3104.2,3104.1,0.00113684]
[1641745320349,2.74489599,3104.2,3104.1,0.00113684]
[1641745321199,1.63765116,3104.3,3104.1,0.00113684]
[1641745321397,1.63765116,3104.3,3104.2,0.80549]
[1641745321595,1.63765116,3104.3,3104.1,0.00113684]
[1641745321799,2.74489599,3104.2,3104.1,0.00113684]
[1641745321994,2.74489599,3104.2,3104.1,0.00218291]
[1641745322595,1.22823802,3104.3,3104.1,0.00218291]
[1641745322895,1.22823802,3104.3,3104.1,2.26127553]
[1641745323095,3.97313401,3104.2,3104.1,2.26022946]
[1641745323496,1.22823802,3104.2,3104.1,2.26022946]
[1641745324964,1.22823802,3104.3,3104.1,2.26022946]
[1641745325564,2.74489599,3104.2,3104.1,2.26022946]
[1641745326466,1.22823802,3104.2,3104.1,2.26022946]
[1641745328694,0.00170527,3104.6,3104.0,28.81045635]
[1641745328695,1.63765116,3104.3,3104.0,28.81045635]
[1641745328898,1.63765116,3104.3,3104.2,1.19438253]
[1641745329096,1.63765116,3104.4,3104.2,1.99973253]
[1641745329295,0.00113684,3104.3,3104.2,3.61043253]
[1641745330496,1.63765116,3104.4,3104.2,4.41578213]
[1641745330697,1.63765116,3104.4,3104.3,0.8053]
[1641745331098,1.63765116,3104.5,3104.3,1.61064]
[1641745331497,1.63878801,3104.5,3104.3,1.61064]
[1641745331955,1.63878801,3104.5,3104.3,3.2212342]
[1641745332152,1.63878801,3104.5,3104.4,5.665]
[1641745332347,2.44580451,3104.7,3104.6,9.25523]
[1641745332550,2.27762466,3104.9,3104.6,2.87023]
[1641745332747,2.27762466,3104.9,3104.7,3.65]
[1641745332947,2.27762466,3104.9,3104.8,0.465]
[1641745333249,2.2787615,3104.9,3104.8,2.11645016]
[1641745333447,0.00113684,3104.9,3104.8,2.11645016]
[1641745334048,0.9311203,3105.4,3104.8,2.92161016]
[1641745334247,0.9311203,3105.4,3104.9,3.22026]
[1641745334449,0.0022737,3105.3,3105.0,0.465]
[1641745334847,0.00170527,3105.2,3105.0,0.465]
[1641745335047,0.00170527,3105.2,3105.1,1.15966591]
[1641745335347,0.9311203,3105.4,3105.3,1.01659947]
[1641745335550,0.9311203,3105.4,3105.3,2.28667947]
[1641745337300,0.9311203,3105.4,3105.3,2.28772514]
[1641745338496,0.9311203,3105.4,3105.3,2.28667947]
[1641745339099,0.9311203,3105.4,3105.3,3.67220085]
[1641745339298,0.9311203,3105.4,3105.3,2.28667947]
[1641745340059,0.9311203,3105.4,3105.3,1.27008]
[1641745344298,3.6745102,3105.4,3105.3,1.27008]
[1641745344696,4.8004,3105.8,3105.4,10.3]
[1641745344898,5.62995,3105.9,3105.7,0.80497]
[1641745345099,1.58515,3106.0,3105.8,0.465]
[1641745345500,7.37767983,3106.4,3106.0,0.14739435]
[1641745345699,1.26583469,3106.7,3106.3,5.82454451]
[1641745345898,4.07164348,3106.9,3106.3,5.82454451]
[1641745345899,4.07164348,3106.9,3106.4,1.26965]
[1641745346099,3.26587125,3106.8,3106.7,8.88586658]
[1641745346299,2.68350768,3106.8,3106.7,12.60086658]
[1641745346500,4.07164348,3107.3,3106.8,5.1]
[1641745346701,4.07164348,3107.3,3107.0,0.80459]
[1641745346954,0.00227369,3107.2,3107.1,1.26963]
[1641745349350,0.00227369,3107.2,3106.9,0.80458]
[1641745349351,0.00227369,3107.2,3106.9,0.7587545]
[1641745349555,8.70227369,3107.2,3107.1,0.465]
[1641745349851,8.70227369,3107.2,3106.9,0.415]
[1641745349852,0.00170527,3107.1,3106.9,0.415]
[1641745350053,0.00170527,3107.1,3106.9,1.21978]
[1641745350254,1.27294408,3107.4,3106.9,1.21978]
[1641745350255,0.00113685,3107.0,3106.9,1.21978]
[1641745351695,0.00113685,3107.0,3106.9,2.5292008]
[1641745352701,0.00113685,3107.0,3106.9,2.53104593]
[1641745354300,0.00113685,3107.0,3106.9,1.22162513]
[1641745354550,0.00113685,3107.0,3106.9,0.36684513]
[1641745354950,0.00113685,3107.0,3106.9,1.17157513]
[1641745358194,0.00113685,3107.0,3106.9,0.36684513]
[1641745359698,0.00113685,3107.0,3106.9,1.85158345]
[1641745359896,0.00113685,3107.0,3106.9,0.36684513]
[1641745360398,6.15113685,3107.0,3106.9,0.36684513]
[1641745360596,0.00113685,3107.0,3106.9,0.36684513]
[1641745361399,3.70113685,3107.0,3106.9,0.36684513]
[1641745361601,0.00113685,3107.0,3106.9,0.36684513]
[1641745362947,0.00113685,3107.0,3106.9,0.00184513]
[1641745363347,6.20113685,3107.0,3106.9,0.00184513]
[1641745364349,0.00113685,3107.0,3106.9,0.00184513]
[1641745365250,2.05565255,3107.2,3106.9,0.00184513]
[1641745365898,1.00227369,3107.4,3106.9,0.00184513]
[1641745365899,2.47876953,3107.3,3106.9,0.00184513]
[1641745366299,0.00113684,3107.2,3106.9,0.00184513]
[1641745366899,0.8048923,3107.1,3106.9,0.00184513]
[1641745367100,11.64558873,3107.0,3106.9,0.00184513]
[1641745367600,1.03355318,3107.0,3106.9,0.00184513]
[1641745367800,0.80603684,3107.2,3106.9,0.00184513]
[1641745367801,0.00113684,3107.2,3106.9,0.00184513]
[1641745369451,1.01530529,3107.1,3106.9,0.00184513]
[1641745369646,1.82020869,3107.1,3106.9,0.00184513]
[1641745370046,13.95,3107.0,3106.3,0.67971572]
[1641745370246,13.95,3107.0,3106.4,0.465]
[1641745370448,2.47685502,3106.9,3106.4,0.46841054]
[1641745370649,3.28180622,3106.9,3106.5,0.00284212]
[1641745370850,0.01290242,3106.9,3106.6,0.465]
[1641745371250,0.01290242,3106.9,3106.7,0.00170527]
[1641745371648,0.81784782,3106.9,3106.7,0.00170527]
[1641745372047,0.8049454,3106.9,3106.7,0.00170527]
[1641745372247,3.51329981,3107.1,3106.7,0.00170527]
[1641745373295,0.8049129,3107.0,3106.7,0.00170527]
[1641745373496,2.38791281,3106.9,3106.7,0.00170527]
[1641745373697,0.8049129,3107.0,3106.7,0.00170527]
[1641745373901,3.98691722,3107.0,3106.7,0.00170527]
[1641745374297,0.80501,3106.8,3106.3,0.00397897]
[1641745374497,2.43364274,3106.7,3106.3,0.00397897]
[1641745374897,1.15071082,3106.5,3106.3,0.00397897]
[1641745375102,8.11398418,3106.4,3106.3,0.00397897]
[1641745375300,14.5209989,3106.4,3106.3,0.00397897]
[1641745375698,14.5209989,3106.4,3106.1,0.00511581]
[1641745376306,15.79707619,3106.2,3106.1,0.00511581]
[1641745376958,0.8051912,3106.3,3106.1,0.00511581]
[1641745377148,2.59125876,3106.3,3106.1,0.00511581]
[1641745378148,3.23578622,3106.4,3106.1,0.00511581]
[1641745378348,0.8050798,3106.4,3106.1,0.00511581]
[1641745378549,1.22154456,3106.6,3106.2,36.39620479]
[1641745378748,1.22154456,3106.6,3106.2,36.86120479]
[1641745378950,1.22154456,3106.6,3106.3,0.00397897]
[1641745379152,1.22154456,3106.6,3106.4,0.465]
[1641745379548,1.07782088,3106.9,3106.5,0.00284212]
[1641745379749,4.84614456,3107.1,3106.6,0.465]
[1641745380149,4.84614456,3107.1,3106.7,0.00170527]
[1641745380549,4.84614456,3107.1,3106.7,0.80656527]
[1641745381000,1.22154456,3107.1,3106.8,0.00113685]
[1641745381199,0.00113684,3107.2,3106.8,0.00113685]
[1641745381202,1.22154456,3107.0,3106.8,0.00113685]
[1641745381600,1.22154456,3107.0,3106.7,0.00170527]
[1641745381803,1.22154456,3107.0,3106.8,0.80484]
[1641745381999,0.00113684,3107.2,3106.8,0.80484]
[1641745383002,0.00113684,3107.2,3106.8,2.01034657]
[1641745383302,1.2226814,3107.2,3106.8,2.01034657]
[1641745383702,1.2226814,3107.2,3106.7,1.61127527]
[1641745384102,2.37637841,3107.2,3106.8,0.00113685]
[1641745384948,1.2226814,3107.2,3106.8,0.00113685]
[1641745385348,1.22154456,3107.0,3106.8,0.00113685]
[1641745386150,1.22154456,3107.0,3106.9,0.80483]
[1641745386753,1.22154456,3107.0,3106.8,0.00113685]
[1641745387450,0.8049078,3107.1,3106.7,0.80489]
[1641745387451,1.22154456,3106.9,3106.7,0.80659527]
[1641745387651,1.22154456,3106.9,3106.8,0.00113685]
[1641745387852,2.56892893,3106.9,3106.8,0.00113685]
[1641745388053,17.06892893,3106.9,3106.8,0.00113685]
[1641745388302,17.36892893,3106.9,3106.5,0.00284212]
[1641745388503,1.08046,3106.8,3106.3,0.00397897]
[1641745388902,0.8854838,3106.8,3106.3,0.00397897]
[1641745389504,1.22154456,3106.6,3106.3,0.00397897]
[1641745389904,0.8050497,3106.5,3106.3,0.00397897]
[1641745390304,2.02659426,3106.5,3106.3,0.00397897]
[1641745390506,9.05,3106.4,3105.8,4.87044]
[1641745390708,1.22154456,3106.5,3105.9,0.465]
[1641745391005,1.22154456,3106.5,3105.9,0.46727369]
[1641745391206,0.8050519,3106.5,3105.9,0.46727369]
[1641745391409,2.02447591,3106.4,3106.1,37.13198117]
[1641745391605,2.02447591,3106.4,3106.2,0.465]
[1641745391807,2.02447591,3106.4,3106.3,0.80482]
[1641745392064,0.00113684,3106.5,3106.4,3.9]
[1641745392268,0.00113684,3106.5,3106.4,0.465]
[1641745392459,0.00113684,3106.5,3106.4,3.19192649]
[1641745393062,0.00113684,3106.5,3106.4,12.48540259]
[1641745393261,0.00113684,3106.5,3106.4,5.98540259]
[1641745393461,0.00113684,3106.5,3106.4,7.28540259]
[1641745394864,0.00113684,3106.5,3106.4,7.18540259]
[1641745395895,0.00113684,3106.5,3106.4,4.69192649]
[1641745396696,1.18109406,3107.2,3107.1,1.36542467]
[1641745396896,1.18109406,3107.2,3107.1,2.17015467]
[1641745396897,1.13109406,3107.2,3107.1,2.17015467]
[1641745397297,1.62188926,3107.3,3107.1,2.17015467]
[1641745397696,1.62643666,3107.3,3107.1,2.17015467]
[1641745397897,0.0045474,3107.3,3107.1,2.17015467]
[1641745398897,0.0045474,3107.3,3107.1,0.80473]
[1641745399096,0.0045474,3107.3,3106.7,2.07458]
[1641745399298,2.40164045,3107.3,3106.7,2.07458]
[1641745399563,0.0045474,3107.3,3106.7,2.07458]
[1641745399957,0.0045474,3107.3,3107.1,1.20498273]
[1641745400160,1.62188926,3107.2,3107.1,1.20498273]
[1641745400358,1.62188926,3107.2,3107.1,1.96998273]
[1641745400557,1.62188926,3107.2,3107.1,2.26998273]
[1641745400957,0.0045474,3107.3,3107.1,2.26998273]
[1641745401958,0.0045474,3107.3,3107.1,3.07467273]
[1641745402158,0.0045474,3107.3,3107.2,6.05]
[1641745402357,0.0045474,3107.3,3107.2,6.515]
[1641745402762,0.0045474,3107.3,3107.2,1.465]
[1641745405806,2.6142877,3108.2,3107.9,1.39596514]
[1641745406004,2.5642877,3108.2,3107.7,0.80457]
[1641745406304,0.00397896,3108.0,3107.5,2.07414]
[1641745406705,0.00341054,3107.9,3107.5,2.07414]
[1641745407152,0.00341054,3107.9,3106.9,3.83521]
[1641745407153,1.22661723,3107.7,3106.9,3.0305]
[1641745407352,1.22661723,3107.7,3106.6,0.465]
[1641745407353,3.02843228,3107.6,3106.8,0.80483]
[1641745407552,3.03013755,3107.6,3107.0,0.00170527]
[1641745407752,0.00113684,3107.5,3106.9,0.0022737]
[1641745408152,1.22661723,3107.4,3107.1,1.21591228]
[1641745408353,1.22661723,3107.4,3107.1,2.02067228]
[1641745409253,1.22661723,3107.3,3107.1,2.02067228]
[1641745409952,0.00113684,3107.5,3107.2,0.465]
[1641745410152,0.00113684,3107.5,3107.3,1.3913987]
[1641745410352,0.00113684,3107.5,3107.3,1.8563987]
[1641745410557,0.00113684,3107.5,3107.4,0.80459]
[1641745411599,0.00113684,3107.5,3107.4,2.86959]
[1641745411800,0.00113684,3107.5,3107.4,8.11959]
[1641745412000,0.00113684,3107.5,3107.4,2.86959]
[1641745412201,0.00113684,3107.5,3107.4,1.26959]
[1641745413001,0.00033684,3107.5,3107.4,1.26959]
[1641745415868,1.9388442,3108.0,3107.4,1.26959]
[1641745416263,0.0022737,3107.9,3107.6,0.80459]
[1641745416466,0.0022737,3107.9,3107.7,0.465]
[1641745416663,0.00170527,3107.8,3107.7,0.465]
[1641745417063,0.00170527,3107.8,3107.7,1.95966116]
[1641745417464,0.00170527,3107.8,3107.7,1.49466116]
[1641745421802,0.00170527,3107.8,3107.7,3.33548044]
[1641745423451,0.00170527,3107.8,3107.7,1.95966116]
[1641745429005,0.66429323,3108.2,3107.7,1.95966116]
[1641745429205,0.66429323,3108.2,3107.7,0.465]
[1641745429463,0.00170528,3108.1,3107.7,1.26961]
[1641745429850,0.00113685,3108.0,3107.7,1.26961]
[1641745431251,0.00113685,3108.0,3107.8,1.12030076]
[1641745431456,0.00113685,3108.0,3107.9,0.80449]
[1641745433705,7.00113685,3108.0,3107.7,0.465]
[1641745433906,0.00113685,3108.0,3107.7,0.465]
[1641745434804,0.00113685,3108.0,3107.8,1.60898]
[1641745435004,0.00113685,3108.0,3107.7,0.465]
[1641745436005,1.22775408,3108.0,3107.7,0.465]
[1641745436809,1.22775408,3108.0,3107.5,0.80467]
[1641745437064,1.91639162,3108.0,3107.5,0.80467]
[1641745437260,1.91639162,3108.0,3107.6,0.00113684]
[1641745437659,3.14300885,3108.0,3107.6,0.00113684]
[1641745437859,3.14300885,3108.0,3107.4,0.00227369]
[1641745438062,3.14300885,3108.0,3107.6,0.80465]
[1641745440263,1.22775408,3108.0,3107.6,0.80465]
[1641745440702,0.00113685,3108.0,3107.6,0.80465]
[1641745440903,0.00113685,3108.0,3107.7,1.4331275]
[1641745441103,0.00113685,3108.0,3107.8,0.8046]
[1641745442304,1.22661723,3108.0,3107.8,0.8046]
[1641745444310,1.22661723,3108.0,3107.5,1.60917]
[1641745444751,1.130343,3108.0,3107.6,0.00227369]
[1641745445353,1.130343,3108.0,3107.8,27.02425147]
[1641745445555,1.130343,3108.0,3107.8,27.82870147]
[1641745445754,2.28618249,3108.2,3107.8,27.82870147]
[1641745445953,0.66429323,3108.2,3108.0,0.80444]
[1641745446152,0.66429323,3108.2,3108.1,1.46651488]
[1641745446554,0.66543008,3108.2,3108.1,1.46651488]
[1641745446953,0.66543008,3108.2,3108.1,2.6862568]
[1641745447954,0.66543008,3108.2,3108.1,1.46651488]
[1641745449607,0.66543008,3108.2,3108.0,0.80444]
[1641745449809,0.66543008,3108.2,3107.8,28.28352805]
[1641745450007,0.66543008,3108.2,3107.8,29.08813805]
[1641745450205,0.66543008,3108.2,3107.8,27.82886147]
[1641745450607,0.66543008,3108.2,3108.0,1.51872304]
[1641745451209,0.51543008,3108.2,3108.1,0.80455]
[1641745451606,0.51543008,3108.2,3108.0,1.51872304]
[1641745452078,0.51543008,3108.2,3107.8,30.01153746]
[1641745452875,0.51543008,3108.2,3108.0,0.80456]
[1641745454081,0.51543008,3108.2,3107.8,30.01153746]
[1641745454682,0.51543008,3108.2,3108.1,1.14929146]
[1641745455287,0.51543008,3108.2,3108.0,0.80456]
[1641745456708,0.51543008,3108.2,3107.5,1.60921]
[1641745457106,0.51543008,3108.2,3107.6,0.00227369]
[1641745457306,0.59586008,3108.2,3107.6,0.00227369]
[1641745457505,1.14804596,3107.7,3107.4,0.00341054]
[1641745457715,2.73424176,3107.6,3107.1,0.00511581]
[1641745457911,1.42462936,3107.6,3107.1,0.00511581]
[1641745458208,0.08044,3107.5,3106.8,0.00682108]
[1641745458608,0.80492,3107.3,3106.8,0.00682108]
[1641745458809,1.16970299,3107.1,3106.8,0.00682108]
[1641745459009,1.23728072,3107.2,3106.8,0.00682108]
[1641745459462,1.23728072,3107.2,3106.4,0.00909477]
[1641745459654,1.23728072,3107.2,3106.4,0.81402477]
[1641745460051,13.65,3107.1,3106.2,1.46287745]
[1641745460255,0.8049605,3106.9,3106.2,1.46287745]
[1641745460551,0.8049605,3106.9,3106.3,0.00113685]
[1641745460552,0.00170527,3106.8,3106.3,0.00113685]
[1641745460756,0.00170527,3106.8,3106.2,0.35213685]
[1641745460951,0.0022737,3106.7,3106.2,0.35213685]
[1641745461153,0.0022737,3106.7,3106.4,0.80493]
[1641745461352,0.00170527,3106.6,3106.2,0.35213685]
[1641745461553,1.34341003,3106.6,3106.2,0.35213685]
[1641745461754,0.00113685,3106.5,3106.2,0.35213685]
[1641745462354,1.42592342,3106.2,3105.7,3.22868349]
[1641745462554,0.8051312,3106.3,3105.7,2.07507]
[1641745462759,2.05790825,3106.5,3105.8,0.00284211]
[1641745463202,2.05790825,3106.5,3105.8,1.22656525]
[1641745463603,2.05790825,3106.5,3105.9,0.00227369]
[1641745463804,2.00790825,3106.5,3105.9,0.00227369]
[1641745464005,2.00790825,3106.5,3105.9,0.00341054]
[1641745464405,1.34170476,3106.6,3105.9,0.00341054]
[1641745464406,2.14675136,3106.6,3105.9,0.00341054]
[1641745464806,3.71813452,3106.6,3105.9,0.00341054]
[1641745465006,3.71813452,3106.6,3105.8,0.00397896]
[1641745465007,1.34170476,3106.6,3105.8,0.00397896]
[1641745465206,1.34170476,3106.6,3105.9,0.80507]
[1641745465706,0.8050999,3106.4,3106.0,0.00284212]
[1641745466106,0.8050999,3106.4,3105.8,0.00397896]
[1641745466308,3.9051,3106.7,3106.0,0.80503]
[1641745466706,3.9051,3106.7,3106.1,0.00227369]
[1641745466958,3.9051,3106.7,3106.3,1.60967]
[1641745467353,3.9051,3106.7,3106.4,0.80484]
[1641745468753,3.9051,3106.7,3106.1,0.00227369]
[1641745468754,3.9051,3106.7,3106.2,0.80499]
[1641745468955,3.9051,3106.7,3106.1,0.00227369]
[1641745469155,3.9051,3106.7,3106.3,0.00113685]
[1641745469355,3.9051,3106.7,3106.1,0.00227369]
[1641745469755,3.9051,3106.7,3106.1,2.85870937]
[1641745470158,3.9051,3106.7,3106.2,0.00170527]
[1641745470357,3.9051,3106.7,3106.2,0.80669527]
[1641745470804,3.9051,3106.7,3106.3,0.00113685]
[1641745471207,3.9051,3106.7,3106.2,0.00170527]
[1641745471804,3.9051,3106.7,3106.4,0.80493]
[1641745472405,3.9051,3106.7,3106.4,0.75493]
[1641745474005,2.4950433,3106.7,3106.4,0.75493]
[1641745474206,1.96966,3107.3,3106.6,1.39932387]
[1641745474458,0.75486,3107.3,3106.7,0.80486]
[1641745474651,0.00397896,3107.2,3106.7,0.80486]
[1641745475052,0.00341054,3107.1,3106.7,0.80486]
[1641745475352,1.5597293,3107.3,3106.7,0.80486]
[1641745475353,0.00284212,3107.0,3106.7,0.80486]
[1641745475756,0.00227369,3106.9,3106.7,0.80486]
[1641745476155,0.00170527,3106.8,3106.7,0.80486]
[1641745476359,0.00170527,3106.8,3106.5,0.8049]
[1641745476757,0.00113685,3106.7,3106.5,0.8049]
[1641745477156,0.00284212,3107.0,3106.5,0.8049]
[1641745477359,0.00284212,3107.0,3106.6,1.34219897]
[1641745477559,0.00227369,3106.9,3106.6,1.34219897]
[1641745478059,0.00170527,3106.8,3106.6,2.14707897]
[1641745478501,0.00113685,3106.7,3106.6,2.14707897]
[1641745478701,0.00113685,3106.7,3106.6,0.80488]
[1641745479302,0.00113685,3106.7,3106.4,0.80493]
[1641745479503,0.00113685,3106.7,3106.2,6.54178527]
[1641745479701,0.00113685,3106.7,3106.2,5.33918527]
[1641745479904,0.00113685,3106.7,3106.3,0.00113685]
[1641745480102,0.00113685,3106.7,3106.3,0.46613685]
[1641745480302,0.00113685,3106.7,3106.3,1.27109685]
[1641745481305,0.80614975,3106.7,3106.3,0.46613685]
[1641745481704,0.00113685,3106.7,3106.3,0.46613685]
[1641745483557,0.00113685,3106.7,3106.3,0.00113685]
[1641745483853,0.80616135,3106.7,3106.0,0.00284212]
[1641745484053,0.80508,3106.5,3106.0,0.00284212]
[1641745484655,1.38701943,3106.7,3106.0,0.00284212]
[1641745484853,0.00113685,3106.7,3106.0,0.80787212]
[1641745485253,0.00113685,3106.7,3106.1,0.00227369]
[1641745485722,0.00113685,3106.7,3106.1,1.34623922]
[1641745486125,0.00113685,3106.7,3106.2,0.00170527]
[1641745486522,2.35631517,3106.7,3106.2,0.00170527]
[1641745486824,2.35631517,3106.7,3106.3,2.03082452]
[1641745487028,0.00113685,3106.7,3106.3,2.03082452]
[1641745488426,0.00113685,3106.7,3106.2,0.00170527]
[1641745489557,0.00113685,3106.7,3106.2,1.81031789]
[1641745489858,0.00113685,3106.7,3106.3,0.00113685]
[1641745490859,0.00113685,3106.7,3106.4,0.80494]
[1641745491560,0.00113685,3106.7,3106.3,0.00113685]
[1641745491760,1.61116555,3106.7,3106.3,0.00113685]
[1641745491959,0.80616685,3106.7,3106.3,0.00113685]
[1641745492360,0.80616685,3106.7,3106.0,0.00284212]
[1641745492959,0.80616685,3106.7,3106.1,0.80502]
[1641745493208,0.00113685,3106.7,3106.1,0.80502]
[1641745493408,0.00113685,3106.7,3106.2,0.00170527]
[1641745493708,0.00113685,3106.7,3106.0,1.4031956]
[1641745493709,0.00113685,3106.7,3106.1,0.00227369]
[1641745494110,2.54809743,3106.7,3106.1,0.00227369]
[1641745494510,2.54809743,3106.7,3106.5,1.33511619]
[1641745495509,2.54809743,3106.7,3106.6,1.15345531]
[1641745495711,0.00113685,3106.7,3106.6,1.95833531]
[1641745495910,0.00113685,3106.7,3106.6,1.15345531]
[1641745499663,0.00113685,3106.7,3106.5,1.60978]
[1641745499864,0.00113685,3106.7,3106.1,0.00227369]
[1641745500062,1.02993685,3106.7,3106.1,0.00227369]
[1641745500263,1.02993685,3106.7,3105.8,0.00397896]
[1641745500264,0.80507,3106.5,3105.8,0.00397896]
[1641745500463,1.9907157,3106.6,3105.8,0.00397896]
[1641745500702,0.8051086,3106.3,3105.8,0.00397896]
[1641745500903,0.80514,3106.3,3105.8,0.00397896]
[1641745501304,0.80515,3106.1,3105.8,0.80907896]
[1641745501503,1.61025,3106.5,3105.8,0.80907896]
[1641745501710,1.61025,3106.5,3105.9,0.00341054]
[1641745501711,1.91025,3106.5,3105.9,0.00341054]
[1641745501905,0.8051227,3106.2,3105.9,0.00341054]
[1641745502104,0.8051227,3106.2,3105.8,0.00397896]
[1641745502304,5.53252623,3106.4,3105.8,0.00397896]
[1641745502505,0.80516,3106.1,3105.8,0.00397896]
[1641745503004,0.80516,3106.1,3105.9,0.15568646]
[1641745503005,3.35560597,3106.1,3105.9,0.15568646]
[1641745503305,3.35560597,3106.1,3106.0,0.00284212]
[1641745503306,4.16073657,3106.1,3106.0,0.00284212]
[1641745503504,0.80516,3106.1,3106.0,0.15852858]
[1641745504466,0.80509,3106.2,3106.0,0.15852858]
[1641745504862,0.8051658,3106.3,3106.1,0.00227369]
[1641745505055,3.58590198,3106.5,3106.1,0.00227369]
[1641745505056,1.23025592,3106.5,3106.1,0.15796015]
[1641745505456,1.23025592,3106.5,3106.3,0.80497]
[1641745505656,1.23025592,3106.5,3106.4,7.64607607]
[1641745505857,0.00113685,3106.7,3106.4,15.20044777]
[1641745506057,0.2369,3106.9,3106.6,33.29133626]
[1641745506257,0.0001,3106.9,3106.7,0.465]
[1641745506460,4.07164348,3108.0,3106.9,12.65]
[1641745506658,3.55764348,3108.0,3107.5,0.01201474]
[1641745506860,5.42885797,3108.5,3108.4,6.15574812]
[1641745507063,5.42885797,3108.5,3108.4,7.72824812]
[1641745507257,4.11139473,3108.6,3108.4,10.33215046]
[1641745507456,4.11139473,3108.6,3108.4,9.03215046]
[1641745507657,4.11139473,3108.6,3108.4,3.28215046]
[1641745507956,4.11139473,3108.6,3108.4,4.08639046]
[1641745508213,0.007,3108.6,3108.4,4.08639046]
[1641745508514,0.007,3108.6,3108.5,0.15568646]
[1641745508714,14.507,3108.6,3108.5,0.15568646]
[1641745508913,14.507,3108.6,3108.4,0.40574812]
[1641745508914,13.05,3108.5,3108.4,3.458e-05]
[1641745509214,14.25655169,3108.5,3108.4,3.458e-05]
[1641745510013,15.25655169,3108.5,3108.4,3.458e-05]
[1641745510214,15.85655169,3108.5,3108.4,3.458e-05]
[1641745510615,12.25,3108.4,3108.3,0.30736186]
[1641745510816,13.33042,3108.4,3108.3,0.30736186]
[1641745511016,0.0900832,3108.4,3108.3,0.30736186]
[1641745511416,0.0096632,3108.4,3108.3,0.30736186]
[1641745511815,9.6596632,3108.4,3108.3,0.30736186]
[1641745512060,12.15108164,3108.4,3108.3,0.30736186]
[1641745512456,9.6596632,3108.4,3108.3,0.30736186]
[1641745512658,1.06792559,3108.4,3108.3,0.30736186]
[1641745513759,15.56792559,3108.4,3108.3,0.30736186]
[1641745514060,16.56792559,3108.4,3108.3,0.30736186]
[1641745514259,17.16792559,3108.4,3108.3,0.30736186]
[1641745514659,16.86792559,3108.4,3108.3,0.30736186]
[1641745514862,16.94834559,3108.4,3108.3,0.30736186]
[1641745515059,17.24834559,3108.4,3108.3,0.30736186]
[1641745515911,2.14834559,3108.4,3108.3,0.30736186]
[1641745516107,2.14834559,3108.4,3108.3,0.24336186]
[1641745516108,2.04834559,3108.4,3108.3,0.24336186]
[1641745516607,1.04834559,3108.4,3108.3,0.24336186]